{"text_format":"1","workbook":"xlsx","n_sheets":5,"sheets":["Вариант ","Старт","Вариант 1","Структура","Навесные"],"not_rendered":{"charts":0,"images":19,"macros":1,"external_links":0,"defined_names":28,"comments":0,"pivot_tables":0},"unopened":[],"bounds":{"document_bytes":16777216,"sheet_cells":100000,"rows_first":2000,"rows_last":500,"rows_between":2000,"halvings":0,"cell_chars":16384,"cell_head_chars":4096},"cells_cut":0,"cells_raw":0,"read":"whole","date_system":"1900"}

{"sheet":"Вариант ","index":0,"n_rows":73,"n_cols":10,"rows_kept":73,"cut":false,"hidden":true,"merged":[[6,0,6,5],[3,1,3,3],[2,1,2,3],[1,1,1,3]]}
[]
["Система обозначения:","Параметры обязательные для ввода, используются непосредственно для выбора оборудования и расчёта его стоимости"]
[null,"Параметры не влияющие непосредственно на выбор оборудования, но необходимые при окончательном согласовании технических характеристик"]
[null,"Итоговые результаты выбора оборудования и расчёта его стоимости с учётом указанных характеристик котлов, котельной и дополнительного оборудования"]
[]
[]
[{"$f":"B69&IF(B70<>\"\",\" (ИНН: \"&B70&\")\",\"\")&\" \"&MID(CELL(\"filename\",A1),FIND(\"]\",CELL(\"filename\",A1))+1,65535)","v":" Вариант "}]
[]
["Подбор котловой автоматики"]
["Марка котла:"]
["Марка горелки:"]
["Колич. котлов:",null,null,{"$f":"IF(B12=\"Нет\",0,B12)","v":0}]
["Тип котла:"]
["Тип горелки:",null,null,{"$f":"IF(B14<>\"\",IF(B14=\"Без встроенного менеджера горения\",1,2),НД)","v":{"$error":"#NAME?"}}]
["Насосы на котле:",null,"Насосы осуществляющие циркуляцию теплоносителя через отдельный котел"]
["Количество исполнит. механизмов:",null,"Количество исполнительных механизмов, управляемых котловым блоком автоматики",{"$f":"IF(B16=\"До 16\",20,IF(B16=\"До 9\",10,0))","v":0},null,null,null,{"$f":"IF(OR(D16:D19),100,0)","v":0}]
["Количество дискретных датчиков:",null,"Количество дискретных датчиков, контролируемых котловым блоком автоматики",{"$f":"IF(B17=\"До 16\",20,IF(B17=\"До 9\",10,0))","v":0}]
["Количество токовых аналоговых датчиков:",null,"Количество токовых датчиков (4-20мА), контролируемых котловым блоком автоматики",{"$f":"IF(B18=\"До 6\",20,IF(B18=\"До 4\",10,0))","v":0}]
["Количество датчиков температуры:",null,"Количество аналоговых датчиков температуры, контролируемых котловым блоком автоматики",{"$f":"IF(B19=\"До 6\",20,IF(B19=\"До 4\",10,0))","v":0},{"$f":"IF(AND(B12<>\"\",B12<>\"Нет\"),IF(B13=\"Паровой\",D14+20,D14+MAX(D16:D19)),НД)","v":{"$error":"#NAME?"}}]
[{"$f":"IFERROR(\"Навесные\",\"\")","v":"Навесные"},{"$f":"IFERROR(INDEX(Структура!2:2,,MATCH(E19,Структура!3:3,0)),\"\")","v":""},null,"Кол-во","Производитель","Цена за шт. с НДС","Сумма с НДС"]
["Блоки котловой автоматики:",{"$f":"IF(B20=\"\",\"\",B20&IF(D12>1,\" (\"&D12&\"шт.)\",\"\"))","v":""},{"$f":"IFERROR(INDEX(Структура!4:4,,MATCH(E19,Структура!3:3,0)),\"\")","v":""},{"$f":"IF(AND(B12>0,B12<>\"Нет\"),B12,\"\")","v":""},{"$f":"IF(B21<>\"\",\"АВИС\",\"\")","v":""},{"$f":"IF(H21>0,H21,\"\")","v":""},{"$f":"IF(AND(F21<>\"\",D21<>\"\"),F21*D21,\"\")","v":""},{"$f":"IFERROR(INDEX(Навесные!C:C,MATCH(B20,Навесные!B:B,0)),0)","v":0},{"$f":"IF(B12<>\"Нет\",H21*B12,0)","v":0}]
[]
["Доп. котловое оборудование","Тип элемента","Элемент","Кол-во (на все котлы)","Производитель","Цена за шт. с НДС","Сумма с НДС"]
[{"$f":"IFERROR(INDEX(INDIRECT(\"Структура!\"&LEFT(ADDRESS(ROW(),MATCH($A$20,Структура!$5:$5,0)-1,4))&\":\"&LEFT(ADDRESS(ROW(),MATCH($A$20,Структура!$5:$5,0)-1,4))),MATCH(B24,INDIRECT(\"Структура!\"&LEFT(ADDRESS(ROW(),MATCH($A$20,Структура!$5:$5,0),4))&\":\"&LEFT(ADDRESS(ROW(),MATCH($A$20,Структура!$5:$5,0),4))),0)),\"\")","v":""},null,null,null,{"$f":"IFERROR(IF(C24=\"Нет\",\"\",INDEX(Навесные!D:D,MATCH(C24,Навесные!B:B,0))),\"\")","v":""},{"$f":"IFERROR(IF(C24=\"Нет\",\"\",INDEX(Навесные!C:C,MATCH(C24,Навесные!B:B,0))),\"\")","v":""},{"$f":"IF(AND(D24>0,F24<>\"\"),D24*F24,\"\")","v":""},{"$f":"IFERROR(IF(C24=\"Нет\",0,INDEX(Навесные!C:C,MATCH(C24,Навесные!B:B,0))),0)","v":0},{"$f":"H24*D24","v":0}]
[]
[]
[]
[null,null,null,null,null,"ИТОГО:",{"$f":"IF(SUM(I24:I27)=0,\"\",SUM(I24:I27))","v":""}]
["Подбор общекотельной автоматики"]
["Количество исполнит. механизмов:",null,"Количество исполнительных механизмов, управляемых общекотельным блоком автоматики",{"$f":"IF(B30=\"До 21\",TRUE,FALSE)","v":false},null,null,null,{"$f":"OR(D30:D33)","v":false}]
["Количество дискретных датчиков:",null,"Количество дискретных датчиков, контролируемых общекотельным блоком автоматики",{"$f":"IF(B31=\"До 30\",TRUE,FALSE)","v":false}]
["Количество токовых аналоговых датчиков:",null,"Количество токовых датчиков (4-20мА), контролируемых общекотельным блоком автоматики",{"$f":"IF(B32=\"До 12\",TRUE,FALSE)","v":false}]
["Количество датчиков температуры:",null,"Количество аналоговых датчиков температуры, контролируемых общекотельным блоком автоматики",{"$f":"IF(B33=\"До 12\",TRUE,FALSE)","v":false}]
["Насосное оборудование","Количество","Тип насосов","Мощн., кВт","Индивидуальные УПП для насосов"]
["Насосы контура 1:",null,null,null,null,null,null,{"$f":"IFERROR(IF(AND(D35>0,D35<15),IF(OR(B35=\"\",B35=\"Нет\"),0,B35),0),0)","v":0},{"$f":"IFERROR(IF(AND(B35>=1,B35<=3),IF(D35=15,15,IF(AND(D35>15,D35<=18.5),18.5,IF(AND(D35>18.5,D35<=22),22,IF(AND(D35>22,D35<=30),30,IF(AND(D35>30,D35<=37),37,IF(AND(D35>37,D35<=45),45,IF(AND(D35>45,D35<=55),55,IF(AND(D35>55,D35<=75),75,IF(AND(D35>75,D35<=90),90,IF(AND(D35>90,D35<=115),115,0)))))))))),0),0)","v":0},{"$f":"IFERROR(IF(I35>0,IF(E35=\"Нет\",INDEX(Навесные!C:C,MATCH(\"БК-\"&I35&\"-\"&B35,Навесные!B:B,0)),INDEX(Навесные!C:C,MATCH(\"БК-\"&I35&\"-1\",Навесные!B:B,0))*B35),0),0)","v":0}]
["Насосы контура 2:",null,null,null,null,null,null,0,0,{"$f":"IFERROR(IF(I36>0,IF(E36=\"Нет\",INDEX(Навесные!C:C,MATCH(\"БК-\"&I36&\"-\"&B36,Навесные!B:B,0)),INDEX(Навесные!C:C,MATCH(\"БК-\"&I36&\"-1\",Навесные!B:B,0))*B36),0),0)","v":0}]
["Насосы контура 3:",null,null,null,null,null,null,0,0,{"$f":"IFERROR(IF(I37>0,IF(E37=\"Нет\",INDEX(Навесные!C:C,MATCH(\"БК-\"&I37&\"-\"&B37,Навесные!B:B,0)),INDEX(Навесные!C:C,MATCH(\"БК-\"&I37&\"-1\",Навесные!B:B,0))*B37),0),0)","v":0}]
["Насосы контура 4:",null,null,null,null,null,null,0,0,{"$f":"IFERROR(IF(I38>0,IF(E38=\"Нет\",INDEX(Навесные!C:C,MATCH(\"БК-\"&I38&\"-\"&B38,Навесные!B:B,0)),INDEX(Навесные!C:C,MATCH(\"БК-\"&I38&\"-1\",Навесные!B:B,0))*B38),0),0)","v":0}]
["Насосы контура 5:",null,null,null,null,null,null,0,0,{"$f":"IFERROR(IF(I39>0,IF(E39=\"Нет\",INDEX(Навесные!C:C,MATCH(\"БК-\"&I39&\"-\"&B39,Навесные!B:B,0)),INDEX(Навесные!C:C,MATCH(\"БК-\"&I39&\"-1\",Навесные!B:B,0))*B39),0),0)","v":0}]
["Насосы контура 6:",null,null,null,null,null,null,0,0,{"$f":"IFERROR(IF(I40>0,IF(E40=\"Нет\",INDEX(Навесные!C:C,MATCH(\"БК-\"&I40&\"-\"&B40,Навесные!B:B,0)),INDEX(Навесные!C:C,MATCH(\"БК-\"&I40&\"-1\",Навесные!B:B,0))*B40),0),0)","v":0}]
["Насосы контура 7:",null,null,null,null,null,null,0,0,{"$f":"IFERROR(IF(I41>0,IF(E41=\"Нет\",INDEX(Навесные!C:C,MATCH(\"БК-\"&I41&\"-\"&B41,Навесные!B:B,0)),INDEX(Навесные!C:C,MATCH(\"БК-\"&I41&\"-1\",Навесные!B:B,0))*B41),0),0)","v":0}]
["Насосы контура 8:",null,null,null,null,null,null,{"$f":"IFERROR(IF(AND(D42>0,D42<15),IF(OR(B42=\"\",B42=\"Нет\"),0,B42),0),0)","v":0},{"$f":"IFERROR(IF(AND(B42>=1,B42<=3),IF(D42=15,15,IF(AND(D42>15,D42<=18.5),18.5,IF(AND(D42>18.5,D42<=22),22,IF(AND(D42>22,D42<=30),30,IF(AND(D42>30,D42<=37),37,IF(AND(D42>37,D42<=45),45,IF(AND(D42>45,D42<=55),55,IF(AND(D42>55,D42<=75),75,IF(AND(D42>75,D42<=90),90,IF(AND(D42>90,D42<=115),115,0)))))))))),0),0)","v":0},{"$f":"IFERROR(IF(I42>0,IF(E42=\"Нет\",INDEX(Навесные!C:C,MATCH(\"БК-\"&I42&\"-\"&B42,Навесные!B:B,0)),INDEX(Навесные!C:C,MATCH(\"БК-\"&I42&\"-1\",Навесные!B:B,0))*B42),0),0)","v":0}]
[{"$f":"IFERROR(IF(OR(SUM(D35:D42)=0,NOT(SUM(B35:B42)>0)),\"\",IF(H30,\"АО_30\",\"АО_20\")),\"\")","v":""},null,{"$f":"IFERROR(IF(A43=\"АО_30\",\"АО-30\",IF(A43=\"АО_20\",\"АО-20\",\"\")),\"\")","v":""},null,"Производитель","Цена с НДС",null,{"$f":"IF(MOD(ROUNDUP(SUM(H35:H41)/8,1),1)>0.5,CEILING(SUM(H35:H41)/8,1),TRUNC(SUM(H35:H41)/8))","v":0},{"$f":"H43*INDEX(Навесные!C:C,MATCH(\"БК-02\",Навесные!B:B,0))","v":0},{"$f":"IFERROR(INDEX(Навесные!C:C,MATCH(C43,Навесные!B:B,0)),0)","v":0}]
["Блоки общекотельной автоматики:",{"$f":"C43&IF(H44>0,\", БК-01\",\"\")&IF(H44>1,\" (\"&H44&\"шт.)\",\"\")&IF(H43>0,\", БК-02\",\"\")&IF(H43>1,\" (\"&H43&\"шт.)\",\"\")&IF(I35>0,\", БК-\"&I35&IF(E35=\"Нет\",\"-\"&B35,\"-1\"&IF(B35>1,\" (\"&B35&\"шт.)\",\"\")),\"\")&IF(I36>0,\", БК-\"&I36&IF(E36=\"Нет\",\"-\"&B36,\"-1\"&IF(B36>1,\" (\"&B36&\"шт.)\",\"\")),\"\")&IF(I37>0,\", БК-\"&I37&IF(E37=\"Нет\",\"-\"&B37,\"-1\"&IF(B37>1,\" (\"&B37&\"шт.)\",\"\")),\"\")&IF(I38>0,\", БК-\"&I38&IF(E38=\"Нет\",\"-\"&B38,\"-1\"&IF(B38>1,\" (\"&B38&\"шт.)\",\"\")),\"\")&IF(I39>0,\", БК-\"&I39&IF(E39=\"Нет\",\"-\"&B39,\"-1\"&IF(B39>1,\" (\"&B39&\"шт.)\",\"\")),\"\")&IF(I40>0,\", БК-\"&I40&IF(E40=\"Нет\",\"-\"&B40,\"-1\"&IF(B40>1,\" (\"&B40&\"шт.)\",\"\")),\"\")&IF(I41>0,\", БК-\"&I41&IF(E41=\"Нет\",\"-\"&B41,\"-1\"&IF(B41>1,\" (\"&B41&\"шт.)\",\"\")),\"\")&IF(I42>0,\", БК-\"&I42&IF(E42=\"Нет\",\"-\"&B42,\"-1\"&IF(B42>1,\" (\"&B42&\"шт.)\",\"\")),\"\")","v":""},{"$f":"IFERROR(INDEX(Структура!27:27,,MATCH(A43,Структура!28:28,0)),\"\")","v":""},null,{"$f":"IF(B44<>\"\",\"АВИС\",\"\")","v":""},{"$f":"IF(SUM(I43:I44)+SUM(J35:J44)=0,\"\",SUM(I43:I44)+SUM(J35:J44))","v":""},null,{"$f":"IFERROR(CEILING((SUM(H35:H41)-H43*8)/4,1),0)","v":0},{"$f":"H44*INDEX(Навесные!C:C,MATCH(\"БК-01\",Навесные!B:B,0))","v":0}]
[]
["Доп. общекотельное оборудование","Тип элемента","Элемент","Кол-во","Производитель","Цена за шт. с НДС","Сумма с НДС"]
[{"$f":"IFERROR(INDEX(INDIRECT(\"Структура!\"&LEFT(ADDRESS(ROW(),MATCH($A$20,Структура!$5:$5,0)-1,4))&\":\"&LEFT(ADDRESS(ROW(),MATCH($A$20,Структура!$5:$5,0)-1,4))),MATCH(B47,INDIRECT(\"Структура!\"&LEFT(ADDRESS(ROW(),MATCH($A$20,Структура!$5:$5,0),4))&\":\"&LEFT(ADDRESS(ROW(),MATCH($A$20,Структура!$5:$5,0),4))),0)),\"\")","v":""},null,null,null,{"$f":"IFERROR(IF(C47=\"Нет\",\"\",INDEX(Навесные!D:D,MATCH(C47,Навесные!B:B,0))),\"\")","v":""},{"$f":"IFERROR(IF(C47=\"Нет\",\"\",INDEX(Навесные!C:C,MATCH(C47,Навесные!B:B,0))),\"\")","v":""},{"$f":"IF(AND(D47>0,F47<>\"\"),D47*F47,\"\")","v":""},{"$f":"IFERROR(IF(C47=\"Нет\",0,INDEX(Навесные!C:C,MATCH(C47,Навесные!B:B,0))),0)","v":0},{"$f":"H47*D47","v":0}]
[]
[]
[]
[null,null,null,null,null,"ИТОГО:",{"$f":"IF(SUM(I47:I50)=0,\"\",SUM(I47:I50))","v":""}]
["Стоимость котловой автоматики:",{"$f":"IF(SUM(I21:I27)=0,\"\",SUM(I21:I27))","v":""},"с НДС 22%"]
["Стоимость общекотельной автоматики:",{"$f":"IF(SUM(I43:I52)+SUM(J35:J52)=0,\"\",SUM(I43:I52)+SUM(J35:J52))","v":""},"с НДС 22%"]
["Итоговая стоимость оборудования:",{"$f":"IF(SUM(B52:B53)=0,\"\",SUM(B52:B53))","v":""},"с НДС 22%"]
[null,null,"ВНИМАНИЕ! Данное предложение не является публичной офертой. Для получения окончательного коммерческого предложения необходимо сформировать официальный запрос."]
[]
[]
[null,"Вариант расчёта"]
[]
[]
[]
[]
[]
[]
[]
[]
["Запрос коммерческого предложения"]
[]
["Название организации:"]
["ИНН:"]
["Контактное лицо:"]
["Телефон:"]
["E-mail:"]

{"sheet":"Старт","index":1,"n_rows":29,"n_cols":7,"rows_kept":29,"cut":false,"hidden":false,"merged":[]}
[]
[]
[]
[null,null,null,null,null,null,"Для начала работы с приложением необходимо \"Включить активное содержимое файла\", "]
[null,null,null,null,null,null,"тем самым разрешив работу встроенных макросов и элементов ActiveX."]
[null,null,null,null,null,null,"Жёлтая панель сообщений со значком щита и кнопкой \"Включить содержимое\" или \"Параметры…\"."]
[]
[]
[null,null,null,null,null,null,"Приложение для подбора и расчёта стоимости блоков автоматического управления для котлов и котельных"]
[null,null,null,null,null,null,"и сопутствующего им оборудования."]
[]
[]
[]
[]
[]
[]
[]
[]
[]
[]
[]
[]
[]
[]
[]
[]
[]
["v. 7.10(17.06.26)"]
["Price-list 17.06.26"]

{"sheet":"Вариант 1","index":2,"n_rows":73,"n_cols":10,"rows_kept":73,"cut":false,"hidden":true,"merged":[[1,1,1,3],[2,1,2,3],[3,1,3,3],[6,0,6,5]]}
[]
["Система обозначения:","Параметры обязательные для ввода, используются непосредственно для выбора оборудования и расчёта его стоимости"]
[null,"Параметры не влияющие непосредственно на выбор оборудования, но необходимые при окончательном согласовании технических характеристик"]
[null,"Итоговые результаты выбора оборудования и расчёта его стоимости с учётом указанных характеристик котлов, котельной и дополнительного оборудования"]
[]
[]
[{"$f":"B69&IF(B70<>\"\",\" (ИНН: \"&B70&\")\",\"\")&\" \"&MID(CELL(\"filename\",A1),FIND(\"]\",CELL(\"filename\",A1))+1,65535)","v":" Вариант 1"}]
[]
["Подбор котловой автоматики"]
["Марка котла:"]
["Марка горелки:"]
["Колич. котлов:",null,null,{"$f":"IF(B12=\"Нет\",0,B12)","v":0}]
["Тип котла:"]
["Тип горелки:",null,null,{"$f":"IF(B14<>\"\",IF(B14=\"Без встроенного менеджера горения\",1,2),НД)","v":{"$error":"#NAME?"}}]
["Насосы на котле:",null,"Насосы осуществляющие циркуляцию теплоносителя через отдельный котел"]
["Количество исполнит. механизмов:",null,"Количество исполнительных механизмов, управляемых котловым блоком автоматики",{"$f":"IF(B16=\"До 16\",20,IF(B16=\"До 9\",10,0))","v":0},null,null,null,{"$f":"IF(OR(D16:D19),100,0)","v":0}]
["Количество дискретных датчиков:",null,"Количество дискретных датчиков, контролируемых котловым блоком автоматики",{"$f":"IF(B17=\"До 16\",20,IF(B17=\"До 9\",10,0))","v":0}]
["Количество токовых аналоговых датчиков:",null,"Количество токовых датчиков (4-20мА), контролируемых котловым блоком автоматики",{"$f":"IF(B18=\"До 6\",20,IF(B18=\"До 4\",10,0))","v":0}]
["Количество датчиков температуры:",null,"Количество аналоговых датчиков температуры, контролируемых котловым блоком автоматики",{"$f":"IF(B19=\"До 6\",20,IF(B19=\"До 4\",10,0))","v":0},{"$f":"IF(AND(B12<>\"\",B12<>\"Нет\"),IF(B13=\"Паровой\",D14+20,D14+MAX(D16:D19)),НД)","v":{"$error":"#NAME?"}}]
[{"$f":"IFERROR(\"Навесные\",\"\")","v":"Навесные"},{"$f":"IFERROR(INDEX(Структура!2:2,,MATCH(E19,Структура!3:3,0)),\"\")","v":""},null,"Кол-во","Производитель","Цена за шт. с НДС","Сумма с НДС"]
["Блоки котловой автоматики:",{"$f":"IF(B20=\"\",\"\",B20&IF(D12>1,\" (\"&D12&\"шт.)\",\"\"))","v":""},{"$f":"IFERROR(INDEX(Структура!4:4,,MATCH(E19,Структура!3:3,0)),\"\")","v":""},{"$f":"IF(AND(B12>0,B12<>\"Нет\"),B12,\"\")","v":""},{"$f":"IF(B21<>\"\",\"АВИС\",\"\")","v":""},{"$f":"IF(H21>0,H21,\"\")","v":""},{"$f":"IF(AND(F21<>\"\",D21<>\"\"),F21*D21,\"\")","v":""},{"$f":"IFERROR(INDEX(Навесные!C:C,MATCH(B20,Навесные!B:B,0)),0)","v":0},{"$f":"IF(B12<>\"Нет\",H21*B12,0)","v":0}]
[]
["Доп. котловое оборудование","Тип элемента","Элемент","Кол-во (на все котлы)","Производитель","Цена за шт. с НДС","Сумма с НДС"]
[{"$f":"IFERROR(INDEX(INDIRECT(\"Структура!\"&LEFT(ADDRESS(ROW(),MATCH($A$20,Структура!$5:$5,0)-1,4))&\":\"&LEFT(ADDRESS(ROW(),MATCH($A$20,Структура!$5:$5,0)-1,4))),MATCH(B24,INDIRECT(\"Структура!\"&LEFT(ADDRESS(ROW(),MATCH($A$20,Структура!$5:$5,0),4))&\":\"&LEFT(ADDRESS(ROW(),MATCH($A$20,Структура!$5:$5,0),4))),0)),\"\")","v":""},null,null,null,{"$f":"IFERROR(IF(C24=\"Нет\",\"\",INDEX(Навесные!D:D,MATCH(C24,Навесные!B:B,0))),\"\")","v":""},{"$f":"IFERROR(IF(C24=\"Нет\",\"\",INDEX(Навесные!C:C,MATCH(C24,Навесные!B:B,0))),\"\")","v":""},{"$f":"IF(AND(D24>0,F24<>\"\"),D24*F24,\"\")","v":""},{"$f":"IFERROR(IF(C24=\"Нет\",0,INDEX(Навесные!C:C,MATCH(C24,Навесные!B:B,0))),0)","v":0},{"$f":"H24*D24","v":0}]
[]
[]
[]
[null,null,null,null,null,"ИТОГО:",{"$f":"IF(SUM(I24:I27)=0,\"\",SUM(I24:I27))","v":""}]
["Подбор общекотельной автоматики"]
["Количество исполнит. механизмов:",null,"Количество исполнительных механизмов, управляемых общекотельным блоком автоматики",{"$f":"IF(B30=\"До 21\",TRUE,FALSE)","v":false},null,null,null,{"$f":"OR(D30:D33)","v":false}]
["Количество дискретных датчиков:",null,"Количество дискретных датчиков, контролируемых общекотельным блоком автоматики",{"$f":"IF(B31=\"До 30\",TRUE,FALSE)","v":false}]
["Количество токовых аналоговых датчиков:",null,"Количество токовых датчиков (4-20мА), контролируемых общекотельным блоком автоматики",{"$f":"IF(B32=\"До 12\",TRUE,FALSE)","v":false}]
["Количество датчиков температуры:",null,"Количество аналоговых датчиков температуры, контролируемых общекотельным блоком автоматики",{"$f":"IF(B33=\"До 12\",TRUE,FALSE)","v":false}]
["Насосное оборудование","Количество","Тип насосов","Мощн., кВт","Индивидуальные УПП для насосов"]
["Насосы контура 1:",null,null,null,null,null,null,{"$f":"IFERROR(IF(AND(D35>0,D35<15),IF(OR(B35=\"\",B35=\"Нет\"),0,B35),0),0)","v":0},{"$f":"IFERROR(IF(AND(B35>=1,B35<=3),IF(D35=15,15,IF(AND(D35>15,D35<=18.5),18.5,IF(AND(D35>18.5,D35<=22),22,IF(AND(D35>22,D35<=30),30,IF(AND(D35>30,D35<=37),37,IF(AND(D35>37,D35<=45),45,IF(AND(D35>45,D35<=55),55,IF(AND(D35>55,D35<=75),75,IF(AND(D35>75,D35<=90),90,IF(AND(D35>90,D35<=115),115,0)))))))))),0),0)","v":0},{"$f":"IFERROR(IF(I35>0,IF(E35=\"Нет\",INDEX(Навесные!C:C,MATCH(\"БК-\"&I35&\"-\"&B35,Навесные!B:B,0)),INDEX(Навесные!C:C,MATCH(\"БК-\"&I35&\"-1\",Навесные!B:B,0))*B35),0),0)","v":0}]
["Насосы контура 2:",null,null,null,null,null,null,0,0,{"$f":"IFERROR(IF(I36>0,IF(E36=\"Нет\",INDEX(Навесные!C:C,MATCH(\"БК-\"&I36&\"-\"&B36,Навесные!B:B,0)),INDEX(Навесные!C:C,MATCH(\"БК-\"&I36&\"-1\",Навесные!B:B,0))*B36),0),0)","v":0}]
["Насосы контура 3:",null,null,null,null,null,null,0,0,{"$f":"IFERROR(IF(I37>0,IF(E37=\"Нет\",INDEX(Навесные!C:C,MATCH(\"БК-\"&I37&\"-\"&B37,Навесные!B:B,0)),INDEX(Навесные!C:C,MATCH(\"БК-\"&I37&\"-1\",Навесные!B:B,0))*B37),0),0)","v":0}]
["Насосы контура 4:",null,null,null,null,null,null,0,0,{"$f":"IFERROR(IF(I38>0,IF(E38=\"Нет\",INDEX(Навесные!C:C,MATCH(\"БК-\"&I38&\"-\"&B38,Навесные!B:B,0)),INDEX(Навесные!C:C,MATCH(\"БК-\"&I38&\"-1\",Навесные!B:B,0))*B38),0),0)","v":0}]
["Насосы контура 5:",null,null,null,null,null,null,0,0,{"$f":"IFERROR(IF(I39>0,IF(E39=\"Нет\",INDEX(Навесные!C:C,MATCH(\"БК-\"&I39&\"-\"&B39,Навесные!B:B,0)),INDEX(Навесные!C:C,MATCH(\"БК-\"&I39&\"-1\",Навесные!B:B,0))*B39),0),0)","v":0}]
["Насосы контура 6:",null,null,null,null,null,null,0,0,{"$f":"IFERROR(IF(I40>0,IF(E40=\"Нет\",INDEX(Навесные!C:C,MATCH(\"БК-\"&I40&\"-\"&B40,Навесные!B:B,0)),INDEX(Навесные!C:C,MATCH(\"БК-\"&I40&\"-1\",Навесные!B:B,0))*B40),0),0)","v":0}]
["Насосы контура 7:",null,null,null,null,null,null,0,0,{"$f":"IFERROR(IF(I41>0,IF(E41=\"Нет\",INDEX(Навесные!C:C,MATCH(\"БК-\"&I41&\"-\"&B41,Навесные!B:B,0)),INDEX(Навесные!C:C,MATCH(\"БК-\"&I41&\"-1\",Навесные!B:B,0))*B41),0),0)","v":0}]
["Насосы контура 8:",null,null,null,null,null,null,0,0,{"$f":"IFERROR(IF(I42>0,IF(E42=\"Нет\",INDEX(Навесные!C:C,MATCH(\"БК-\"&I42&\"-\"&B42,Навесные!B:B,0)),INDEX(Навесные!C:C,MATCH(\"БК-\"&I42&\"-1\",Навесные!B:B,0))*B42),0),0)","v":0}]
[{"$f":"IFERROR(IF(OR(SUM(D35:D42)=0,NOT(SUM(B35:B42)>0)),\"\",IF(H30,\"АО_30\",\"АО_20\")),\"\")","v":""},null,{"$f":"IFERROR(IF(A43=\"АО_30\",\"АО-30\",IF(A43=\"АО_20\",\"АО-20\",\"\")),\"\")","v":""},null,"Производитель","Цена с НДС",null,{"$f":"IF(MOD(ROUNDUP(SUM(H35:H41)/8,1),1)>0.5,CEILING(SUM(H35:H41)/8,1),TRUNC(SUM(H35:H41)/8))","v":0},{"$f":"H43*INDEX(Навесные!C:C,MATCH(\"БК-02\",Навесные!B:B,0))","v":0},{"$f":"IFERROR(INDEX(Навесные!C:C,MATCH(C43,Навесные!B:B,0)),0)","v":0}]
["Блоки общекотельной автоматики:",{"$f":"C43&IF(H44>0,\", БК-01\",\"\")&IF(H44>1,\" (\"&H44&\"шт.)\",\"\")&IF(H43>0,\", БК-02\",\"\")&IF(H43>1,\" (\"&H43&\"шт.)\",\"\")&IF(I35>0,\", БК-\"&I35&IF(E35=\"Нет\",\"-\"&B35,\"-1\"&IF(B35>1,\" (\"&B35&\"шт.)\",\"\")),\"\")&IF(I36>0,\", БК-\"&I36&IF(E36=\"Нет\",\"-\"&B36,\"-1\"&IF(B36>1,\" (\"&B36&\"шт.)\",\"\")),\"\")&IF(I37>0,\", БК-\"&I37&IF(E37=\"Нет\",\"-\"&B37,\"-1\"&IF(B37>1,\" (\"&B37&\"шт.)\",\"\")),\"\")&IF(I38>0,\", БК-\"&I38&IF(E38=\"Нет\",\"-\"&B38,\"-1\"&IF(B38>1,\" (\"&B38&\"шт.)\",\"\")),\"\")&IF(I39>0,\", БК-\"&I39&IF(E39=\"Нет\",\"-\"&B39,\"-1\"&IF(B39>1,\" (\"&B39&\"шт.)\",\"\")),\"\")&IF(I40>0,\", БК-\"&I40&IF(E40=\"Нет\",\"-\"&B40,\"-1\"&IF(B40>1,\" (\"&B40&\"шт.)\",\"\")),\"\")&IF(I41>0,\", БК-\"&I41&IF(E41=\"Нет\",\"-\"&B41,\"-1\"&IF(B41>1,\" (\"&B41&\"шт.)\",\"\")),\"\")&IF(I42>0,\", БК-\"&I42&IF(E42=\"Нет\",\"-\"&B42,\"-1\"&IF(B42>1,\" (\"&B42&\"шт.)\",\"\")),\"\")","v":""},{"$f":"IFERROR(INDEX(Структура!27:27,,MATCH(A43,Структура!28:28,0)),\"\")","v":""},null,{"$f":"IF(B44<>\"\",\"АВИС\",\"\")","v":""},{"$f":"IF(SUM(I43:I44)+SUM(J35:J44)=0,\"\",SUM(I43:I44)+SUM(J35:J44))","v":""},null,{"$f":"IFERROR(CEILING((SUM(H35:H41)-H43*8)/4,1),0)","v":0},{"$f":"H44*INDEX(Навесные!C:C,MATCH(\"БК-01\",Навесные!B:B,0))","v":0}]
[]
["Доп. общекотельное оборудование","Тип элемента","Элемент","Кол-во","Производитель","Цена за шт. с НДС","Сумма с НДС"]
[{"$f":"IFERROR(INDEX(INDIRECT(\"Структура!\"&LEFT(ADDRESS(ROW(),MATCH($A$20,Структура!$5:$5,0)-1,4))&\":\"&LEFT(ADDRESS(ROW(),MATCH($A$20,Структура!$5:$5,0)-1,4))),MATCH(B47,INDIRECT(\"Структура!\"&LEFT(ADDRESS(ROW(),MATCH($A$20,Структура!$5:$5,0),4))&\":\"&LEFT(ADDRESS(ROW(),MATCH($A$20,Структура!$5:$5,0),4))),0)),\"\")","v":""},null,null,null,{"$f":"IFERROR(IF(C47=\"Нет\",\"\",INDEX(Навесные!D:D,MATCH(C47,Навесные!B:B,0))),\"\")","v":""},{"$f":"IFERROR(IF(C47=\"Нет\",\"\",INDEX(Навесные!C:C,MATCH(C47,Навесные!B:B,0))),\"\")","v":""},{"$f":"IF(AND(D47>0,F47<>\"\"),D47*F47,\"\")","v":""},{"$f":"IFERROR(IF(C47=\"Нет\",0,INDEX(Навесные!C:C,MATCH(C47,Навесные!B:B,0))),0)","v":0},{"$f":"H47*D47","v":0}]
[]
[]
[]
[null,null,null,null,null,"ИТОГО:",{"$f":"IF(SUM(I47:I50)=0,\"\",SUM(I47:I50))","v":""}]
["Стоимость котловой автоматики:",{"$f":"IF(SUM(I21:I27)=0,\"\",SUM(I21:I27))","v":""},"с НДС 22%"]
["Стоимость общекотельной автоматики:",{"$f":"IF(SUM(I43:I52)+SUM(J35:J52)=0,\"\",SUM(I43:I52)+SUM(J35:J52))","v":""},"с НДС 22%"]
["Итоговая стоимость оборудования:",{"$f":"IF(SUM(B52:B53)=0,\"\",SUM(B52:B53))","v":""},"с НДС 22%"]
[null,null,"ВНИМАНИЕ! Данное предложение не является публичной офертой. Для получения окончательного коммерческого предложения необходимо сформировать официальный запрос."]
[]
[]
[null,"Вариант расчёта"]
[]
[]
[]
[]
[]
[]
[]
[]
["Запрос коммерческого предложения"]
[]
["Название организации:"]
["ИНН:"]
["Контактное лицо:"]
["Телефон:"]
["E-mail:"]

{"sheet":"Структура","index":3,"n_rows":30,"n_cols":15,"rows_kept":30,"cut":false,"hidden":true,"merged":[]}
[]
[null,null,null,null,"АК-01.ХХ",null,"АК-02.ХХ",null,"АК-11.ХХ",null,"АК-12.ХХ",null,"АК-21.ХХ",null,"АК-22.ХХ"]
[null,null,null,null,1,null,2,null,11,null,12,null,21,null,22]
[null,null,null,null,"Управление работой водогрейного котла с горелкой без встроенного менеджера горения",null,"Управление работой водогрейного котла со встроенным менеджером горения",null,"Управление работой водогрейного котла с горелкой без встроенного менеджера горения",null,"Управление работой водогрейного котла со встроенным менеджером горения",null,"Управление работой водогрейного котла с горелкой без встроенного менеджера горения",null,"Управление работой водогрейного котла со встроенным менеджером горения"]
[null,"Навесные"]
["Датчик_температуры_теплоносителя","Датчик температуры теплоносителя"]
["Датчик_температуры_воздуха","Датчик температуры воздуха"]
["Датчик_циркуляции","Датчик циркуляции"]
["Датчик_давления_теплоносителя","Датчик давления теплоносителя"]
["Датчик_давления_теплоносителя_4_20мА","Датчик давления теплоносителя 4-20мА"]
["Датчик_давления_топлива","Датчик давления топлива"]
["Датчик_давления_топлива_4_20мА","Датчик давления топлива 4-20мА"]
["Датчик_тяги","Датчик тяги"]
["Датчик_тяги_4_20мА","Датчик тяги 4-20мА"]
["Предельный_термостат","Предельный термостат"]
["Контроль_вентилятора","Контроль вентилятора (дымососа)"]
["Датчик_уровня_теплоносителя","Датчик уровня"]
["Датчик_ПДК_газа","Датчик ПДК газа"]
["Датчик_пожара","Датчик пожара"]
["Датчик_вскрытия_помещения","Датчик вскрытия помещения"]
["Контроль_доступа","Контроль доступа"]
["Аварийный_оповещатель","Аварийный оповещатель"]
["Передача_телеметрии","Передача телеметрии"]
["Регулятор_управления_краном_подмешивания","Регулятор управления краном подмешивания"]
["Источник_бесперебойного_питания","Источник бесперебойного питания"]
["Блок_питания_24В","Блок питания 24В"]
["Блок_розжига","Блок розжига",null,null,"Управление работой оборудования котельной.",null,"Управление работой оборудования котельной."]
["Датчик_пламени","Датчик пламени",null,null,"АО_30",null,"АО_20"]
["Клапан_газовый","Клапан газовый"]
["Контактор_в_оболочке_с_тепловым_реле","Контактор в оболочке"]

{"sheet":"Навесные","index":4,"n_rows":213,"n_cols":6,"rows_kept":213,"cut":false,"hidden":true,"merged":[]}
[null,"Навесные элементы","Цена с НДС","Производитель"]
[]
[null,"Датчик давления теплоносителя 4-20мА"]
[null,"Нет"]
[null,"Преобразователь давления ДДМ-03Т-ДИ, (класс 0.5)",4670,"Прома",null,"ЗАК(К)"]
[null,"Манометр с токовым выходом АДМ-100.3 IP20, (класс 2.5(по показ.))",7200,"Агава",null,"ЗАК(К)"]
[null,"Преобразователь давления ПД100-ДИ-311-1,0, (класс 1.0 с керамическим сенсором)",5570,"ОВЕН",null,"ЗАК(К)"]
[null,"Преобразователь давления ПД100-ДИ-111-1,0, (класс 1.0 с мембраной из нерж. стали)",6590,"ОВЕН",null,"ЗАК(К)"]
[]
[null,"Датчик давления топлива 4-20мА"]
[null,"Нет"]
[null,"Преобразователь давления ДДМ-1012-ДИ, (класс 1.0)",15970,"Прома",null,"ЗАК(К)"]
[null,"Преобразователь давления ПД100И-ДИ-811-0,5, (класс 0.5)",12060,"ОВЕН",null,"ЗАК(К)"]
[null,"Преобразователь давления АДН-10.2, (класс 1.5)",14420,"Агава",null,"ЗАК(К)"]
[]
[null,"Датчик тяги 4-20мА"]
[null,"Нет"]
[null,"Преобразователь давления ПД100И-ДИВ-811-1,5, (класс 1.5)",12060,"ОВЕН",null,"ЗАК(К)"]
[null,"Преобразователь давления ДДМ-ДИВ-0,25",13670,"Прома",null,"ЗАК(К)"]
[null,"Преобразователь давления АДР-0,5.2",20860,"Агава",null,"ЗАК(К)"]
[]
[null,"Датчик давления теплоносителя"]
[null,"Нет"]
[null,"Манометр показывающий МП3-Уф исп ЭКО кт.1,5 d.100 IP40 M20*1,5 РШ (класс 1.5, 100мм)",840,"Физтех",null,"ЗАК(К)"]
[null,"Манометр показывающий ТМ-510Р.М20х1,5. 1,5 (класс 1.5, 100мм)",1260,"РОСМА",null,"ЗАК(К)"]
[null,"ЭКМ ДМ2010ф испV кт.1,5 d.100 IP40 М20*1,5 РШ, (класс 1.5, исп.V, магн.конт.), 2 порога",3740,"Физтех",null,"ЗАК(К)"]
[null,"ЭКМ ТМ−510Р.05 М20х1,5.1,5, (класс 1.5, исп.V, магн.конт.), 2 порога",3270,"РОСМА",null,"ЗАК(К)"]
[null,"Реле давления РД-016-ДИ 220В, (класс 1.5), 2 порога",3430,"Прома",null,"ЗАК(К)"]
[]
[null,"Датчик давления топлива"]
[null,"Нет"]
[null,"Напорометр показывающий КМ-11Р М12х1,5. 2,5 (класс 2.5, 63мм)",2514,"РОСМА",null,"ЗАК(К)"]
[null,"Напоромер показывающий НМПф кт.2,5 d.63 IP40 М12*1,5 РШ (класс 2.5, 63мм)",2910,"Физтех",null,"ЗАК(К)"]
[null,"Реле давления ДРД-Н А (1 порог)",8460,"Термобрест",null,"ЗАК(К)"]
[null,"Реле давления РД-016-ДИ 220В, (класс 1.5, 2 порога)",6150,"Прома",null,"ЗАК(К)"]
[]
[null,"Датчик тяги"]
[null,"Нет"]
[null,"Тягонапорометр показывающий КМВ-22Р М20х1,5. 1,5 (класс 1.5, 100мм)",5370,"РОСМА",null,"ЗАК(К)"]
[null,"Реле давления РД-016-0,25ДИВ 220В, (класс 1.5, ±0,25 кПа)",9160,"Прома",null,"ЗАК(К)"]
[]
[null,"Датчик циркуляции"]
[null,"Нет"]
[null,"Реле протока ДР-П-03 (0,6..94 м3/ч, 1 МПа, G1''(G1/2'',G3/4''))",2810,"АРК",null,"ЗАК(К)"]
[null,"Реле протока ДР-П-02 (0,96..168 м3/ч, 1 МПа, G1''(G1/2'',G3/4''))",6390,"АРК",null,"ЗАК(К)"]
[null,"Реле перепада давления РД55-ДД0,35 (уставка 50..350 кПа, дифференциал 20 кПа, Pmax 1,65 МПа)",4250,"ОВЕН",null,"ЗАК(К)"]
[null,"Реле перепада давления ДР-ДД-02 (уставка 0..200 кПа, дифференциал 30 кПа, Pmax 1,2 МПа)",4980,"АРК",null,"ЗАК(К)"]
[null,"Реле перепада давления ДЕМ-202Р-030 (уставка 5..30 кПа, дифференциал 3 кПа, Pmax 1,6 МПа)",11860,"РАСКО",null,"ЗАК(К)"]
[]
[null,"Датчик температуры теплоносителя"]
[null,"Нет"]
[null,"Датчик температуры ДТС335-50М.В3",1900,"ОВЕН",null,"ЗАК(К)"]
[null,"Датчик температуры ДТС335-РТ100.В3",3220,"ОВЕН",null,"ЗАК(К)"]
[]
[null,"Датчик температуры воздуха"]
[null,"Нет"]
[null,"Датчик температуры ДТС125Л-50М.В3.60",1630,"ОВЕН",null,"ЗАК(К)"]
[]
[null,"Датчик ПДК газа"]
[null,"Нет"]
[null,"Сигнализатор RGDME5MP1 Beagle, (метан, до 100кв.м)",6740,"Seitron",null,"ЗАК(К)"]
[null,"Сигнализатор RGDCO0MP1, (угарн.газ, до 200кв.м)",21310,"Seitron",null,"ЗАК(К)"]
[null,"Сигнализатор ДЗ-1-СН4, (метан, до 100кв.м)",20500,"ОВЕН",null,"ЗАК(К)"]
[null,"Сигнализатор ДЗ-1-СО, (угарн.газ, до 200кв.м)",22700,"ОВЕН",null,"ЗАК(К)"]
[null,"Сигнализатор СОУ-1, (угарн.газ, до 200кв.м)",20160,"Аналитприбор",null,"ЗАК(К)"]
[null,"Сигнализатор СГГ-6М с БСП-6М, (метан, до 100кв.м)",18580,"Аналитприбор",null,"ЗАК(К)"]
[null,"Сигнализатор СТГ-1-1, (метан и угарн.газ, до 100кв.м)",30120,"Аналитприбор",null,"ЗАК(К)"]
[null,"Сигнализатор СТГ-1-2, (метан и угарн.газ, до 200кв.м)",39480,"Аналитприбор",null,"ЗАК(К)"]
[]
[null,"Датчик вскрытия помещения"]
[null,"Нет"]
[null,"Извещатель охранный ИО 102-20 Б2П В",320,"КСС",null,"ЗАК(К)"]
[null,"Концевой выключатель ВПК-2112Б-У2-КЭАЗ",900,"КЭАЗ",null,"ЗАК(К)"]
[null,"Концевой выключатель ВККН-2118М11-У2, арт. SQ0732-0028",1000,"TDM",null,"ЗАК(К)"]
[]
[null,"Датчик пожара"]
[null,"Нет"]
[null,"Извещатель пожарный ИП 212-45 (двухпроводный)",790,"Рубеж",null,"ЗАК(К)"]
[null,"Извещатель пожарный ИП 212-54Р1 НЗ (четырехпроводный)",1470,"ИВС",null,"ЗАК(К)"]
[null,"Прибор пожарно-охранный Кварц, с аккум. 12В 1,2Ач",6640,"Сиб. Арсенал",null,"ЗАК(К)"]
[null,"Прибор пожарно-охранный Гранит-3 Эк, с аккум. 12В 4,5Ач",11510,"Сиб. Арсенал",null,"ЗАК(К)"]
[]
[null,"Контроль доступа"]
[null,"Нет"]
[null,"Считыватель СТМ-КР, (Touch Memory, накладной)",500,"Техносистемы",null,"ЗАК(К)"]
[null,"Считыватель 2 Исп 01, (Touch Memory, накладной)",1100,"Радий",null,"ЗАК(К)"]
[null,"Считыватель CP-Z-2 (мод. EP, EM-Marine, накладной)",2880,"Iron Logic",null,"ЗАК(К)"]
[null,"Комплект ключей DS1990A, (Touch Memory, 2 штуки)",142,"Falcon Eye",null,"ЗАК(К)"]
[null,"Комплект брелоков Proximity, (EM-Marine, 2 штуки)",40,"Falcon Eye",null,"ЗАК(К)"]
[]
[null,"Датчик уровня теплоносителя"]
[null,"Нет"]
[null,"Датчик кондуктометрический ДС.П со стержнем 0,5м, (М20х1,5)",930,"ОВЕН",null,"ЗАК(К)"]
[null,"Датчик кондуктометрический ДС.П со стержнем 1,95м, (М20х1,5)",1215,"ОВЕН",null,"ЗАК(К)"]
[null,"Датчик кондуктометрический ДС.ПВТ.4 со стержнями 0,25м, 0,5м, 1м и 1,95м, (G3/4'')",6390,"ОВЕН",null,"ЗАК(К)"]
[]
[null,"Предельный термостат"]
[null,"Нет"]
[null,"Термостат погружной ДР-ТП-110, (30-110 °С)",1900,"АРК",null,"ЗАК(К)"]
[]
[null,"Контроль вентилятора"]
[null,"Нет"]
[null,"Реле перепада давления РД30-ДД200, (20..200 Па)",2570,"ОВЕН",null,"ЗАК(К)"]
[]
[null,"Датчик пламени"]
[null,"Нет"]
[null,"Внешний фотодатчик пламени АДП-01.4 (фоторезистор ФР-1) с фланцем",20790,"Агава",null,"ЗАК(К)"]
[null,"Внешний фотодатчик пламени АДП-01.10 с фланцем, УФ-спектр",25840,"Агава",null,"ЗАК(К)"]
[null,"Внешний фотодатчик пламени ФДС-01-220, ИК-спектр",14900,"Прома",null,"ЗАК(К)"]
[null,"Внешний фотодатчик пламени ФДС-03-220, УФ-спектр",18220,"Прома",null,"ЗАК(К)"]
[null,"Внешний ионизационный датчик пламени АДП-01.6 (без КЭ)",15740,"Агава",null,"ЗАК(К)"]
[null,"Внешний ионизационный датчик пламени ЛУЧ-КЭ (без КЭ)",16180,"Прома",null,"ЗАК(К)"]
[null,"Контрольный электрод (L=500, 700, 1000, 1200мм)",4700,"Прома",null,"ЗАК(К)"]
[]
[null,"Клапан газовый"]
[null,"Нет"]
[null,"Клапан газовый КЭГ-15, (0,25 МПа, НЗ, катушка AC220V, ДУ15)",7050,"Прома",null,"ЗАК(К)"]
[null,"Клапан газовый КЭГ-20, (0,25 МПа, НЗ, катушка AC220V, ДУ20)",7840,"Прома",null,"ЗАК(К)"]
[null,"Клапан газовый КЭГ-20-НО, (0,25 МПа, НО, катушка AC220V, ДУ20)",9800,"Прома",null,"ЗАК(К)"]
[null,"Клапан газовый КЭГ-25, (0,25 МПа, НЗ, катушка AC220V, ДУ25)",10430,"Прома",null,"ЗАК(К)"]
[null,"Клапан газовый ВН1/2Н-0.2, (0,02 МПа, НЗ, катушка AC220V, ДУ15)",12570,"Термобрест",null,"ЗАК(К)"]
[null,"Клапан газовый ВН3/4Н-0.2, (0,02 МПа, НЗ, катушка AC220V, ДУ20)",12570,"Термобрест",null,"ЗАК(К)"]
[null,"Клапан газовый ВН1Н-0.2, (0,02 МПа, НЗ, катушка AC220V, ДУ20)",17590,"Термобрест",null,"ЗАК(К)"]
[null,"Клапан газовый КЭГ-9720, (0,4 МПа, НЗ, катушка AC220V, ДУ20)",14670,"Аналитприбор",null,"ЗАК(К)"]
[null,"Клапан газовый КЭГ-9720, (0,1 МПа, НЗ, катушка AC220V, ДУ50)",19350,"Аналитприбор",null,"ЗАК(К)"]
[null,"Клапан газовый КЭГ-9720, (0,4 МПа, НЗ, катушка AC220V, ДУ80)",56160,"Аналитприбор",null,"ЗАК(К)"]
[]
[null,"Аварийный оповещатель"]
[null,"Нет"]
[null,"Извещатель световой Маяк-220-С, (AC220V)",550,"ЭиА",null,"ЗАК(К)"]
[null,"Извещатель звуковой Маяк-220-ЗМ1, (AC220V)",820,"ЭиА",null,"ЗАК(К)"]
[null,"Извещатель светозвуковой О-220 (Октава-220В), (AC220V)",1210,"Арсенал безоп.",null,"ЗАК(К)"]
[]
[null,"Блок розжига"]
[null,"Нет"]
[null,"Блок розжига БР-1-1, (AC220V)",580,"АВИС"]
[null,"Источник высокого напряжения ИВН-01, (AC220V)",2370,"Прома",null,"ЗАК(К)"]
[null,"Источник высокого напряжения ИВН-ТРМ, (AC220V)",7500,"Прома",null,"ЗАК(К)"]
[]
[null,"Контактор в оболочке с тепловым реле"]
[null,"Нет"]
[null,"Коммутация насоса до 4кВт (9A, АС-3 380/400В)",3000,"IEK",null,"УСТ(К)"]
[null,"Коммутация насоса до 5,5кВт (12A, АС-3 380/400В)",3620,"IEK",null,"УСТ(К)"]
[null,"Коммутация насоса до 7,5кВт (18A, АС-3 380/400В)",3600,"IEK",null,"УСТ(К)"]
[null,"Коммутация насоса до 11кВт (25A, АС-3 380/400В)",4020,"IEK",null,"УСТ(К)"]
[]
[null,"Передача телеметрии"]
[null,"Нет"]
[null,"Выносной проводной пульт контроля ПСК-30, (оповещении об авариях, дальность до 200м)",8540,"АВИС"]
[null,"GSM-модем MC52iT с БП, антенной, кабелем RS-232, клипсой на din-рейку (для SMS-оповещения)",7400,"IRZ",null,"ЗАК(К)"]
[null,"GSM-модем ATM42.А с БП, антенной, кабелем RS-232 (для диспетчеризации)",11160,"IRZ",null,"ЗАК(К)"]
[null,"LTE-роутер RL21w с БП, 2 GSM-антеннами, 2 WiFi-антеннами, патч-кордом (для диспетчеризации)",32590,"IRZ",null,"ЗАК(К)"]
[null,"Контроллер Кситал GSM-4T, (4 охранных зоны)",17690,"Кситал",null,"ЗАК(К)"]
[null,"Контроллер Кситал GSM-8T, (8 охранных зон)",18150,"Кситал",null,"ЗАК(К)"]
[]
[null,"Регулятор управления краном подмешивания"]
[null,"Нет"]
[null,"ПИД-регулятор ТРМ12-Н.У2.РР.RS, (настенный, релейные выходы, 110х129х69мм, IP66)",8640,"ОВЕН",null,"ЗАК(К)"]
[]
[null,"Блок питания 24В"]
[null,"Нет"]
[null,"Блок питания модульный БП-30-24 (на DIN-рейку, 24 В, 1,25 А)",2280,"Прома",null,"ЗАК(К)"]
[null,"Блок питания на DIN-рейку HDR-30-24 (24V/1,5A)",1092,"Mean Well",null,"УСТ(К)"]
[null,"Блок питания модульный БП30Б-Д3-24 (на DIN-рейку, 24 В, 1,25 А)",6300,"ОВЕН",null,"ЗАК(К)"]
[]
[null,"Источник бесперебойного питания"]
[null,"Нет"]
[null,"ИБП/UPS INFOLCD600I (line-interactive, 600ВА/360Вт)",7000,"ДКС",null,"УСТ(К)"]
[null,"ИБП/UPS TEPLOCOM-50+ (on-line, настенный, 50ВА/40Вт)",12840,"Бастион",null,"ЗАК(К)"]
[null,"ИБП/UPS Энергия ПРО 500 (line-interactive, \"чистая синусоида\", 500ВА/300Вт)",27480,"Энергия",null,"ЗАК(К)"]
[null,"ИБП/UPS SW500SL (on-line, \"сквозной ноль\", настенный, 500ВА/400Вт)",35460,"Штиль",null,"ЗАК(К)"]
[]
[null,"Блоки автоматики"]
[null,"АК-01.ХХ",25950]
[null,"АК-02.ХХ",25530]
[null,"АК-11.ХХ",50730]
[null,"АК-12.ХХ",49530]
[null,"АК-21.ХХ",67140]
[null,"АК-22.ХХ",65970]
[]
[null,"АО-20",190900]
[null,"АО-30",227000]
[]
[null,"БК-01",80400]
[null,"БК-02",130400]
[]
[null,"БК-15-1",59200]
[null,"БК-15-2",86600]
[null,"БК-15-3",91400]
[null,"БК-18,5-1",60700]
[null,"БК-18,5-2",87100]
[null,"БК-18,5-3",92500]
[null,"БК-22-1",64700]
[null,"БК-22-2",90800]
[null,"БК-22-3",97300]
[null,"БК-30-1",68200]
[null,"БК-30-2",98300]
[null,"БК-30-3",104900]
[null,"БК-37-1",78300]
[null,"БК-37-2",108700]
[null,"БК-37-3",117000]
[null,"БК-45-1",83600]
[null,"БК-45-2",116400]
[null,"БК-45-3",124800]
[null,"БК-55-1",102600]
[null,"БК-55-2",175900]
[null,"БК-55-3",196200]
[null,"БК-75-1",147300]
[null,"БК-75-2",217000]
[null,"БК-75-3",243700]
[null,"БК-90-1",159500]
[null,"БК-90-2",235900]
[null,"БК-90-3",265700]